[Event "Titled Tuesday Blitz March 01 Late 2022"]
[White "Curtis, John"]
[Black "Toncheva, Nadya"]
[WhiteFideId "3200256"]
[BlackFideId "2924056"]
[WhiteElo "2203"]
[BlackElo "1920"]
[Result "0-1"]
[Round "03"]
[TimeControl "180+1"]
[Date "2022.03.02"]
[WhiteClock "0:00:06"]
[BlackClock "0:00:10"]

1. e4 {[%clk 0:03:00]}  d5 {[%clk 0:02:42]} 2. exd5 {[%clk 0:03:00]}  Qxd5 {[%clk 0:02:41]} 3. Nc3 {[%clk 0:03:00]}  Qa5 {[%clk 0:02:32]} 4. Bc4 {[%clk 0:02:58]}  Nf6 {[%clk 0:02:32]} 5. d3 {[%clk 0:02:57]}  c6 {[%clk 0:02:31]} 6. Bd2 {[%clk 0:02:57]}  Qc7 {[%clk 0:02:31]} 7. h3 {[%clk 0:02:55]}  Bf5 {[%clk 0:02:31]} 8. Qf3 {[%clk 0:02:55]}  e6 {[%clk 0:02:31]} 9. Nge2 {[%clk 0:02:54]}  Nbd7 {[%clk 0:02:31]} 10. Nd4 {[%clk 0:02:54]}  Bg6 {[%clk 0:02:18]} 11. Bb3 {[%clk 0:02:51]}  Bd6 {[%clk 0:02:18]} 12. O-O-O {[%clk 0:02:32]}  O-O-O {[%clk 0:02:18]} 13. g4 {[%clk 0:02:18]}  Nd5 {[%clk 0:02:10]} 14. Ne4 {[%clk 0:02:10]}  Bf4 {[%clk 0:01:55]} 15. Bxf4 {[%clk 0:02:01]}  Nxf4 {[%clk 0:01:54]} 16. Qe3 {[%clk 0:01:49]}  Ne5 {[%clk 0:01:38]} 17. Ne2 {[%clk 0:01:27]}  Nxe2+ {[%clk 0:01:24]} 18. Qxe2 {[%clk 0:01:27]}  Kb8 {[%clk 0:01:19]} 19. Kb1 {[%clk 0:01:26]}  Rd4 {[%clk 0:01:13]} 20. c3 {[%clk 0:01:10]}  Rdd8 {[%clk 0:00:27]} 21. d4 {[%clk 0:01:08]}  Nd7 {[%clk 0:00:25]} 22. Bc2 {[%clk 0:00:53]}  c5 {[%clk 0:00:23]} 23. Ng5 {[%clk 0:00:47]}  Bxc2+ {[%clk 0:00:21]} 24. Qxc2 {[%clk 0:00:45]}  Qf4 {[%clk 0:00:18]} 25. Ne4 {[%clk 0:00:36]}  cxd4 {[%clk 0:00:18]} 26. Rxd4 {[%clk 0:00:33]}  Nb6 {[%clk 0:00:15]} 27. Rhd1 {[%clk 0:00:27]}  Rd5 {[%clk 0:00:15]} 28. Rxd5 {[%clk 0:00:19]}  Nxd5 {[%clk 0:00:15]} 29. Nc5 {[%clk 0:00:17]}  Rc8 {[%clk 0:00:11]} 30. Nd3 {[%clk 0:00:06]}  Qe4 {[%clk 0:00:10]} 0-1


[Site "https://www.chess.com"]

[Event "Titled Tuesday Blitz March 01 Late 2022"]
[White "Debray, Christopher"]
[Black "Wu, Sibo"]
[WhiteFideId "630810"]
[BlackFideId "8606048"]
[WhiteElo "2369"]
[BlackElo "2303"]
[Result "0-1"]
[Round "03"]
[TimeControl "180+1"]
[Date "2022.03.02"]
[WhiteClock "0:00:14"]
[BlackClock "0:00:11"]

1. d4 {[%clk 0:03:00]}  Nf6 {[%clk 0:02:59]} 2. Nf3 {[%clk 0:02:58]}  c5 {[%clk 0:02:55]} 3. c4 {[%clk 0:02:56]}  g6 {[%clk 0:02:49]} 4. g3 {[%clk 0:02:56]}  Bg7 {[%clk 0:02:49]} 5. Bg2 {[%clk 0:02:55]}  cxd4 {[%clk 0:02:47]} 6. Nxd4 {[%clk 0:02:55]}  O-O {[%clk 0:02:47]} 7. O-O {[%clk 0:02:55]}  d6 {[%clk 0:02:47]} 8. Nc3 {[%clk 0:02:55]}  a6 {[%clk 0:02:47]} 9. Re1 {[%clk 0:02:48]}  Nbd7 {[%clk 0:02:44]} 10. e4 {[%clk 0:02:44]}  Ne5 {[%clk 0:02:36]} 11. b3 {[%clk 0:02:33]}  Bd7 {[%clk 0:02:26]} 12. Bb2 {[%clk 0:02:31]}  Rc8 {[%clk 0:02:25]} 13. Rc1 {[%clk 0:02:28]}  h5 {[%clk 0:02:20]} 14. h3 {[%clk 0:02:22]}  g5 {[%clk 0:01:58]} 15. Qd2 {[%clk 0:02:04]}  g4 {[%clk 0:01:56]} 16. h4 {[%clk 0:01:59]}  Ng6 {[%clk 0:01:38]} 17. Nf5 {[%clk 0:01:48]}  Bxf5 {[%clk 0:01:37]} 18. exf5 {[%clk 0:01:49]}  Ne5 {[%clk 0:01:36]} 19. Bxb7 {[%clk 0:01:38]}  Qd7 {[%clk 0:01:27]} 20. Bg2 {[%clk 0:01:27]}  Qxf5 {[%clk 0:01:26]} 21. Nd5 {[%clk 0:01:16]}  Nxd5 {[%clk 0:01:23]} 22. cxd5 {[%clk 0:01:02]}  Rxc1 {[%clk 0:00:48]} 23. Bxc1 {[%clk 0:00:49]}  Rc8 {[%clk 0:00:41]} 24. Qg5 {[%clk 0:00:43]}  Qxg5 {[%clk 0:00:26]} 25. Bxg5 {[%clk 0:00:44]}  Kf8 {[%clk 0:00:23]} 26. Be4 {[%clk 0:00:41]}  Nf3+ {[%clk 0:00:15]} 27. Bxf3 {[%clk 0:00:41]}  gxf3 {[%clk 0:00:15]} 28. Rc1 {[%clk 0:00:35]}  Rxc1+ {[%clk 0:00:14]} 29. Bxc1 {[%clk 0:00:36]}  Bd4 {[%clk 0:00:13]} 30. Kf1 {[%clk 0:00:35]}  Kg7 {[%clk 0:00:13]} 31. Be3 {[%clk 0:00:34]}  Bc3 {[%clk 0:00:13]} 32. Bg5 {[%clk 0:00:24]}  f6 {[%clk 0:00:12]} 33. Bf4 {[%clk 0:00:22]}  Kg6 {[%clk 0:00:13]} 34. Kg1 {[%clk 0:00:19]}  Kf5 {[%clk 0:00:13]} 35. Bh6 {[%clk 0:00:18]}  Ke5 {[%clk 0:00:10]} 36. Bf8 {[%clk 0:00:18]}  Kxd5 {[%clk 0:00:10]} 37. Bxe7 {[%clk 0:00:19]}  Ke6 {[%clk 0:00:10]} 38. Bd8 {[%clk 0:00:18]}  d5 {[%clk 0:00:10]} 39. Bb6 {[%clk 0:00:15]}  d4 {[%clk 0:00:10]} 40. Kh2 {[%clk 0:00:14]}  d3 {[%clk 0:00:10]} 41. Be3 {[%clk 0:00:13]}  d2 {[%clk 0:00:10]} 42. Bxd2 {[%clk 0:00:14]}  Bxd2 {[%clk 0:00:11]} 43. g4 {[%clk 0:00:15]}  hxg4 {[%clk 0:00:11]} 44. Kg3 {[%clk 0:00:15]}  f5 {[%clk 0:00:10]} 45. a4 {[%clk 0:00:13]}  a5 {[%clk 0:00:10]} 46. h5 {[%clk 0:00:12]}  Kf6 {[%clk 0:00:10]} 47. Kh4 {[%clk 0:00:12]}  Bg5+ {[%clk 0:00:10]} 48. Kg3 {[%clk 0:00:13]}  Bd2 {[%clk 0:00:11]} 49. h6 {[%clk 0:00:13]}  Kg6 {[%clk 0:00:11]} 50. h7 {[%clk 0:00:14]}  Kxh7 {[%clk 0:00:11]} 51. Kh4 {[%clk 0:00:14]}  Kg6 {[%clk 0:00:11]} 52. Kg3 {[%clk 0:00:14]}  Kg5 {[%clk 0:00:11]} 53. Kh2 {[%clk 0:00:14]}  f4 {[%clk 0:00:11]} 0-1


[Site "https://www.chess.com"]

[Event "Titled Tuesday Blitz March 01 Late 2022"]
[White "Demchenko, Anton"]
[Black "Dobre, Claudiu-Cristian"]
[WhiteFideId "4160258"]
[BlackFideId "1211854"]
[WhiteElo "2539"]
[BlackElo "2207"]
[Result "1-0"]
[Round "03"]
[TimeControl "180+1"]
[Date "2022.03.02"]
[WhiteClock "0:01:11"]
[BlackClock "0:00:02"]

1. e4 {[%clk 0:03:00]}  c6 {[%clk 0:03:00]} 2. d4 {[%clk 0:03:00]}  d5 {[%clk 0:03:00]} 3. e5 {[%clk 0:03:00]}  Bf5 {[%clk 0:03:00]} 4. Bd3 {[%clk 0:03:01]}  Bxd3 {[%clk 0:02:59]} 5. Qxd3 {[%clk 0:03:02]}  e6 {[%clk 0:03:00]} 6. Ne2 {[%clk 0:03:02]}  Qa5+ {[%clk 0:02:59]} 7. c3 {[%clk 0:03:02]}  Qa6 {[%clk 0:02:59]} 8. Qd1 {[%clk 0:03:03]}  c5 {[%clk 0:02:49]} 9. O-O {[%clk 0:03:03]}  Nd7 {[%clk 0:02:43]} 10. Nd2 {[%clk 0:03:02]}  Ne7 {[%clk 0:02:42]} 11. Nf3 {[%clk 0:02:59]}  Nc6 {[%clk 0:02:41]} 12. a3 {[%clk 0:02:57]}  Be7 {[%clk 0:02:36]} 13. Ng3 {[%clk 0:02:56]}  O-O {[%clk 0:02:31]} 14. h4 {[%clk 0:02:54]}  Kh8 {[%clk 0:02:11]} 15. Be3 {[%clk 0:02:46]}  cxd4 {[%clk 0:02:10]} 16. cxd4 {[%clk 0:02:46]}  Rac8 {[%clk 0:02:09]} 17. Nh5 {[%clk 0:02:38]}  Na5 {[%clk 0:01:56]} 18. Bg5 {[%clk 0:02:27]}  f6 {[%clk 0:01:53]} 19. exf6 {[%clk 0:02:26]}  gxf6 {[%clk 0:01:52]} 20. Bh6 {[%clk 0:02:20]}  Rg8 {[%clk 0:01:51]} 21. Re1 {[%clk 0:02:21]}  Rg6 {[%clk 0:01:49]} 22. Bd2 {[%clk 0:02:13]}  Bd6 {[%clk 0:01:38]} 23. Bxa5 {[%clk 0:02:08]}  Qxa5 {[%clk 0:01:37]} 24. Rxe6 {[%clk 0:02:09]}  Bb8 {[%clk 0:01:32]} 25. Qe2 {[%clk 0:02:06]}  Qc7 {[%clk 0:01:26]} 26. Re1 {[%clk 0:01:59]}  Rcg8 {[%clk 0:01:23]} 27. g3 {[%clk 0:01:53]}  Rh6 {[%clk 0:01:17]} 28. Re8 {[%clk 0:01:49]}  Nf8 {[%clk 0:01:12]} 29. Nh2 {[%clk 0:01:26]}  a6 {[%clk 0:00:07]} 30. Kh1 {[%clk 0:01:21]}  Ba7 {[%clk 0:00:06]} 31. Ng4 {[%clk 0:01:12]}  Rhg6 {[%clk 0:00:02]} 32. Ngxf6 {[%clk 0:01:11]} 1-0


[Site "https://www.chess.com"]

[Event "Titled Tuesday Blitz March 01 Late 2022"]
[White "Djokic, Mihailo"]
[Black "Rangel, Daniel"]
[WhiteFideId "976440"]
[BlackFideId "2124475"]
[WhiteElo "2008"]
[BlackElo "2187"]
[Result "0-1"]
[Round "03"]
[TimeControl "180+1"]
[Date "2022.03.02"]
[WhiteClock "0:00:01"]
[BlackClock "0:00:08"]

1. e4 {[%clk 0:03:00]}  c6 {[%clk 0:02:56]} 2. d4 {[%clk 0:02:59]}  d5 {[%clk 0:02:57]} 3. e5 {[%clk 0:02:57]}  c5 {[%clk 0:02:56]} 4. dxc5 {[%clk 0:02:57]}  e6 {[%clk 0:02:56]} 5. Nf3 {[%clk 0:02:57]}  Bxc5 {[%clk 0:02:55]} 6. Bd3 {[%clk 0:02:58]}  Ne7 {[%clk 0:02:54]} 7. Nbd2 {[%clk 0:02:57]}  Ng6 {[%clk 0:02:54]} 8. Nb3 {[%clk 0:02:58]}  Bb6 {[%clk 0:02:47]} 9. O-O {[%clk 0:02:58]}  Nc6 {[%clk 0:02:47]} 10. Re1 {[%clk 0:02:57]}  O-O {[%clk 0:02:46]} 11. Be3 {[%clk 0:02:55]}  Bxe3 {[%clk 0:02:33]} 12. Rxe3 {[%clk 0:02:56]}  Qb6 {[%clk 0:02:30]} 13. h4 {[%clk 0:02:45]}  Re8 {[%clk 0:01:47]} 14. h5 {[%clk 0:02:44]}  Nf8 {[%clk 0:01:47]} 15. c3 {[%clk 0:02:39]}  a5 {[%clk 0:01:46]} 16. h6 {[%clk 0:02:33]}  g6 {[%clk 0:01:45]} 17. Nfd4 {[%clk 0:02:31]}  a4 {[%clk 0:01:43]} 18. Qf3 {[%clk 0:02:30]}  Qd8 {[%clk 0:01:38]} 19. Nxc6 {[%clk 0:02:29]}  bxc6 {[%clk 0:01:36]} 20. Nd4 {[%clk 0:02:29]}  Bd7 {[%clk 0:01:35]} 21. Qf4 {[%clk 0:02:26]}  Rb8 {[%clk 0:01:28]} 22. b3 {[%clk 0:02:22]}  c5 {[%clk 0:01:25]} 23. Nf3 {[%clk 0:02:22]}  Qe7 {[%clk 0:01:15]} 24. Ng5 {[%clk 0:02:18]}  axb3 {[%clk 0:01:01]} 25. axb3 {[%clk 0:02:17]}  Rxb3 {[%clk 0:01:00]} 26. Rf3 {[%clk 0:02:18]}  Rxc3 {[%clk 0:01:00]} 27. Ra7 {[%clk 0:01:32]}  c4 {[%clk 0:00:58]} 28. Be2 {[%clk 0:00:54]}  Rxf3 {[%clk 0:00:58]} 29. Bxf3 {[%clk 0:00:54]}  Rc8 {[%clk 0:00:55]} 30. Kh2 {[%clk 0:00:44]}  c3 {[%clk 0:00:54]} 31. Ra1 {[%clk 0:00:40]}  Rc4 {[%clk 0:00:51]} 32. Qc1 {[%clk 0:00:38]}  Rh4+ {[%clk 0:00:40]} 33. Kg1 {[%clk 0:00:37]}  Rc4 {[%clk 0:00:36]} 34. Ra3 {[%clk 0:00:34]}  c2 {[%clk 0:00:35]} 35. Ra2 {[%clk 0:00:35]}  Qc5 {[%clk 0:00:33]} 36. Be2 {[%clk 0:00:24]}  Rc3 {[%clk 0:00:29]} 37. Nf3 {[%clk 0:00:25]}  d4 {[%clk 0:00:22]} 38. Ne1 {[%clk 0:00:25]}  Qxe5 {[%clk 0:00:18]} 39. Rxc2 {[%clk 0:00:22]}  Bc6 {[%clk 0:00:15]} 40. Bf3 {[%clk 0:00:12]}  Rxc2 {[%clk 0:00:12]} 41. Nxc2 {[%clk 0:00:09]}  Bxf3 {[%clk 0:00:11]} 42. gxf3 {[%clk 0:00:09]}  d3 {[%clk 0:00:11]} 43. Nb4 {[%clk 0:00:07]}  Qd4 {[%clk 0:00:07]} 44. Qd2 {[%clk 0:00:06]}  e5 {[%clk 0:00:07]} 45. Nxd3 {[%clk 0:00:07]}  Ne6 {[%clk 0:00:06]} 46. Qc2 {[%clk 0:00:04]}  f5 {[%clk 0:00:06]} 47. Qc8+ {[%clk 0:00:03]}  Kf7 {[%clk 0:00:06]} 48. Qb7+ {[%clk 0:00:03]}  Kf6 {[%clk 0:00:07]} 49. Qb3 {[%clk 0:00:02]}  Kg5 {[%clk 0:00:06]} 50. Qxe6 {[%clk 0:00:01]}  Qxd3 {[%clk 0:00:05]} 51. Qxe5 {[%clk 0:00:02]}  Kxh6 {[%clk 0:00:06]} 52. Qh2+ {[%clk 0:00:02]}  Kg7 {[%clk 0:00:07]} 53. Qg3 {[%clk 0:00:02]}  Qd1+ {[%clk 0:00:06]} 54. Kg2 {[%clk 0:00:02]}  Qd7 {[%clk 0:00:07]} 55. f4 {[%clk 0:00:01]}  Qc6+ {[%clk 0:00:06]} 56. Kh2 {[%clk 0:00:02]}  Qe6 {[%clk 0:00:06]} 57. Qc3+ {[%clk 0:00:02]}  Qf6 {[%clk 0:00:07]} 58. Qc7+ {[%clk 0:00:03]}  Kh6 {[%clk 0:00:08]} 59. Qc4 {[%clk 0:00:03]}  Qh4+ {[%clk 0:00:08]} 60. Kg2 {[%clk 0:00:03]}  Qg4+ {[%clk 0:00:09]} 61. Kf1 {[%clk 0:00:04]}  Qd1+ {[%clk 0:00:09]} 62. Kg2 {[%clk 0:00:05]}  Qg4+ {[%clk 0:00:10]} 63. Kh1 {[%clk 0:00:05]}  Qh3+ {[%clk 0:00:11]} 64. Kg1 {[%clk 0:00:06]}  Qf3 {[%clk 0:00:10]} 65. Qd4 {[%clk 0:00:04]}  Kh5 {[%clk 0:00:10]} 66. Qd7 {[%clk 0:00:04]}  h6 {[%clk 0:00:10]} 67. Qd6 {[%clk 0:00:03]}  Qg4+ {[%clk 0:00:10]} 68. Kf1 {[%clk 0:00:03]}  Qh3+ {[%clk 0:00:10]} 69. Ke1 {[%clk 0:00:03]}  Qh1+ {[%clk 0:00:10]} 70. Kd2 {[%clk 0:00:04]}  Qe4 {[%clk 0:00:11]} 71. Qc7 {[%clk 0:00:02]}  Qf3 {[%clk 0:00:11]} 72. Ke1 {[%clk 0:00:02]}  Qe4+ {[%clk 0:00:10]} 73. Kf1 {[%clk 0:00:03]}  Qh1+ {[%clk 0:00:11]} 74. Ke2 {[%clk 0:00:03]}  Qh3 {[%clk 0:00:11]} 75. Qe5 {[%clk 0:00:03]}  Qg4+ {[%clk 0:00:11]} 76. Ke3 {[%clk 0:00:03]}  g5 {[%clk 0:00:10]} 77. Qe8+ {[%clk 0:00:03]}  Kh4 {[%clk 0:00:10]} 78. fxg5 {[%clk 0:00:03]}  hxg5 {[%clk 0:00:09]} 79. Qh8+ {[%clk 0:00:03]}  Qh5 {[%clk 0:00:10]} 80. Qa8 {[%clk 0:00:03]}  f4+ {[%clk 0:00:10]} 81. Kd2 {[%clk 0:00:03]}  Qg4 {[%clk 0:00:10]} 82. Qh8+ {[%clk 0:00:03]}  Qh5 {[%clk 0:00:10]} 83. Qa8 {[%clk 0:00:03]}  f3 {[%clk 0:00:08]} 84. Qc8 {[%clk 0:00:03]}  Qg4 {[%clk 0:00:06]} 85. Qh8+ {[%clk 0:00:03]}  Qh5 {[%clk 0:00:06]} 86. Qd8 {[%clk 0:00:03]}  Kh3 {[%clk 0:00:06]} 87. Qd7+ {[%clk 0:00:03]}  g4 {[%clk 0:00:06]} 88. Qe6 {[%clk 0:00:03]}  Qg5+ {[%clk 0:00:06]} 89. Kd1 {[%clk 0:00:03]}  Qh4 {[%clk 0:00:06]} 90. Ke1 {[%clk 0:00:02]}  Kg2 {[%clk 0:00:05]} 91. Qe3 {[%clk 0:00:01]}  Qh1+ {[%clk 0:00:05]} 92. Kd2 {[%clk 0:00:02]}  Qf1 {[%clk 0:00:06]} 93. Qf4 {[%clk 0:00:01]}  Qxf2+ {[%clk 0:00:06]} 94. Kd3 {[%clk 0:00:02]}  g3 {[%clk 0:00:06]} 95. Qh4 {[%clk 0:00:01]}  Qe2+ {[%clk 0:00:07]} 96. Kc3 {[%clk 0:00:02]}  f2 {[%clk 0:00:07]} 97. Qf4 {[%clk 0:00:01]}  Qf3+ {[%clk 0:00:07]} 98. Qxf3+ {[%clk 0:00:01]}  Kxf3 {[%clk 0:00:08]} 0-1


[Site "https://www.chess.com"]

[Event "Titled Tuesday Blitz March 01 Late 2022"]
[White "Elissalt Cardenas, Hector"]
[Black "Stanisz, Patryk"]
[WhiteFideId "3500632"]
[BlackFideId "1123106"]
[WhiteElo "2159"]
[BlackElo "1876"]
[Result "1-0"]
[Round "03"]
[TimeControl "180+1"]
[Date "2022.03.02"]
[WhiteClock "0:00:56"]
[BlackClock "0:01:42"]

1. d4 {[%clk 0:03:00]}  Nf6 {[%clk 0:02:58]} 2. c4 {[%clk 0:02:59]}  e6 {[%clk 0:02:58]} 3. Nc3 {[%clk 0:02:55]}  Bb4 {[%clk 0:02:55]} 4. Qc2 {[%clk 0:02:53]}  d5 {[%clk 0:02:55]} 5. cxd5 {[%clk 0:02:48]}  exd5 {[%clk 0:02:55]} 6. Bg5 {[%clk 0:02:44]}  h6 {[%clk 0:02:54]} 7. Bxf6 {[%clk 0:02:32]}  Qxf6 {[%clk 0:02:54]} 8. a3 {[%clk 0:02:32]}  Bxc3+ {[%clk 0:02:52]} 9. Qxc3 {[%clk 0:02:31]}  c6 {[%clk 0:02:45]} 10. e3 {[%clk 0:02:27]}  O-O {[%clk 0:02:45]} 11. Ne2 {[%clk 0:02:18]}  Re8 {[%clk 0:02:41]} 12. Ng3 {[%clk 0:02:14]}  Nd7 {[%clk 0:02:22]} 13. Bd3 {[%clk 0:02:14]}  Nf8 {[%clk 0:02:21]} 14. O-O {[%clk 0:02:07]}  Be6 {[%clk 0:02:15]} 15. Rac1 {[%clk 0:01:44]}  Rac8 {[%clk 0:02:15]} 16. Qc5 {[%clk 0:01:34]}  b6 {[%clk 0:02:14]} 17. Qd6 {[%clk 0:01:27]}  Red8 {[%clk 0:02:10]} 18. Qb4 {[%clk 0:01:23]}  c5 {[%clk 0:02:08]} 19. dxc5 {[%clk 0:01:15]}  bxc5 {[%clk 0:02:09]} 20. Rxc5 {[%clk 0:01:15]}  Rxc5 {[%clk 0:02:02]} 21. Qxc5 {[%clk 0:01:14]}  Qxb2 {[%clk 0:02:03]} 22. Qxa7 {[%clk 0:01:14]}  Qc3 {[%clk 0:01:52]} 23. Bb5 {[%clk 0:01:01]}  d4 {[%clk 0:01:45]} 24. exd4 {[%clk 0:01:00]}  Rxd4 {[%clk 0:01:42]} 25. Ne2 {[%clk 0:00:56]} 1-0


[Site "https://www.chess.com"]

[Event "Titled Tuesday Blitz March 01 Late 2022"]
[White "Garriga Cazorla, Pere"]
[Black "Ponkratov, Pavel"]
[WhiteFideId "32011601"]
[BlackFideId "4157800"]
[WhiteElo "2458"]
[BlackElo "2487"]
[Result "0-1"]
[Round "03"]
[TimeControl "180+1"]
[Date "2022.03.01"]
[WhiteClock "0:00:53"]
[BlackClock "0:02:31"]

1. d4 {[%clk 0:03:00]}  Nf6 {[%clk 0:02:59]} 2. c4 {[%clk 0:03:01]}  e6 {[%clk 0:03:00]} 3. Nc3 {[%clk 0:03:01]}  Bb4 {[%clk 0:03:00]} 4. Qc2 {[%clk 0:03:01]}  d6 {[%clk 0:02:58]} 5. Nf3 {[%clk 0:03:01]}  Nbd7 {[%clk 0:02:57]} 6. Bd2 {[%clk 0:03:01]}  c5 {[%clk 0:02:56]} 7. e3 {[%clk 0:03:00]}  O-O {[%clk 0:02:55]} 8. a3 {[%clk 0:03:01]}  Bxc3 {[%clk 0:02:55]} 9. Bxc3 {[%clk 0:03:01]}  b6 {[%clk 0:02:55]} 10. Be2 {[%clk 0:03:01]}  Bb7 {[%clk 0:02:55]} 11. b4 {[%clk 0:03:00]}  Ne4 {[%clk 0:02:54]} 12. Bb2 {[%clk 0:03:00]}  Rc8 {[%clk 0:02:54]} 13. O-O {[%clk 0:02:59]}  Qe7 {[%clk 0:02:54]} 14. Rad1 {[%clk 0:02:56]}  f5 {[%clk 0:02:53]} 15. Nd2 {[%clk 0:02:40]}  Qg5 {[%clk 0:02:46]} 16. Bf3 {[%clk 0:02:19]}  Nxd2 {[%clk 0:02:42]} 17. Bxb7 {[%clk 0:02:13]}  Nxf1 {[%clk 0:02:42]} 18. Kxf1 {[%clk 0:02:08]}  Rc7 {[%clk 0:02:41]} 19. Bf3 {[%clk 0:02:09]}  cxb4 {[%clk 0:02:37]} 20. axb4 {[%clk 0:02:08]}  Rfc8 {[%clk 0:02:38]} 21. Be2 {[%clk 0:02:03]}  Nf6 {[%clk 0:02:38]} 22. Qb3 {[%clk 0:01:32]}  Qh4 {[%clk 0:02:35]} 23. Bf3 {[%clk 0:01:25]}  Rxc4 {[%clk 0:02:34]} 24. h3 {[%clk 0:01:02]}  d5 {[%clk 0:02:33]} 25. Ra1 {[%clk 0:00:56]}  Rc2 {[%clk 0:02:31]} 26. Be2 {[%clk 0:00:53]}  Ne4 {[%clk 0:02:31]} 0-1


[Site "https://www.chess.com"]

[Event "Titled Tuesday Blitz March 01 Late 2022"]
[White "Gatterer, Florian"]
[Black "Donatti, Alvaro"]
[WhiteFideId "811688"]
[BlackFideId "3000303"]
[WhiteElo "2218"]
[BlackElo "2138"]
[Result "1-0"]
[Round "03"]
[TimeControl "180+1"]
[Date "2022.03.02"]
[WhiteClock "0:00:39"]
[BlackClock "0:00:05"]

1. c4 {[%clk 0:03:00]}  e5 {[%clk 0:02:58]} 2. g3 {[%clk 0:02:58]}  Nf6 {[%clk 0:02:57]} 3. Bg2 {[%clk 0:02:58]}  c6 {[%clk 0:02:57]} 4. d4 {[%clk 0:02:57]}  exd4 {[%clk 0:02:57]} 5. Qxd4 {[%clk 0:02:56]}  d5 {[%clk 0:02:57]} 6. Nf3 {[%clk 0:02:54]}  Be7 {[%clk 0:02:53]} 7. O-O {[%clk 0:02:53]}  O-O {[%clk 0:02:52]} 8. Nc3 {[%clk 0:02:48]}  dxc4 {[%clk 0:02:51]} 9. Qxc4 {[%clk 0:02:45]}  Be6 {[%clk 0:02:50]} 10. Qa4 {[%clk 0:02:41]}  Nbd7 {[%clk 0:02:48]} 11. Rd1 {[%clk 0:02:34]}  Qb6 {[%clk 0:02:40]} 12. h3 {[%clk 0:02:33]}  Nd5 {[%clk 0:02:22]} 13. Nxd5 {[%clk 0:02:28]}  Bxd5 {[%clk 0:02:19]} 14. Qc2 {[%clk 0:02:14]}  h6 {[%clk 0:02:10]} 15. e4 {[%clk 0:02:12]}  Be6 {[%clk 0:02:08]} 16. Nd4 {[%clk 0:02:12]}  Rad8 {[%clk 0:02:00]} 17. Be3 {[%clk 0:02:04]}  Qc7 {[%clk 0:01:52]} 18. Nxe6 {[%clk 0:02:00]}  fxe6 {[%clk 0:01:50]} 19. Rac1 {[%clk 0:01:56]}  Kh8 {[%clk 0:01:37]} 20. Qb3 {[%clk 0:01:54]}  e5 {[%clk 0:01:34]} 21. a4 {[%clk 0:01:44]}  Nb6 {[%clk 0:00:59]} 22. a5 {[%clk 0:01:40]}  Rxd1+ {[%clk 0:00:56]} 23. Rxd1 {[%clk 0:01:36]}  Nc8 {[%clk 0:00:56]} 24. a6 {[%clk 0:01:29]}  b6 {[%clk 0:00:54]} 25. h4 {[%clk 0:01:21]}  c5 {[%clk 0:00:53]} 26. Qe6 {[%clk 0:01:14]}  Bf6 {[%clk 0:00:47]} 27. Rd7 {[%clk 0:01:08]}  Qb8 {[%clk 0:00:44]} 28. Bh3 {[%clk 0:00:49]}  Qa8 {[%clk 0:00:27]} 29. Bf5 {[%clk 0:00:47]}  Rg8 {[%clk 0:00:16]} 30. Rb7 {[%clk 0:00:46]}  b5 {[%clk 0:00:14]} 31. Rxb5 {[%clk 0:00:42]}  Nb6 {[%clk 0:00:13]} 32. Qf7 {[%clk 0:00:41]}  Rf8 {[%clk 0:00:06]} 33. Qg6 {[%clk 0:00:40]}  Qd8 {[%clk 0:00:05]} 34. Qh7# {[%clk 0:00:39]} 1-0


[Site "https://www.chess.com"]